bitfinex/quotes_ETHUSD_20240711
["timestamp","ask_amount","ask_price","bid_price","bid_amount"]
[1720658786375,2.2515,3100.0,3099.5,1.68471988]
[1720658786621,2.2515,3100.0,3099.4,1.68471988]
[1720658786921,2.2515,3100.0,3099.5,1.12316277]
[1720658787124,2.2515,3100.0,3099.4,4.91116062]
[1720658787427,2.2515,3100.0,3099.4,4.91115735]
[1720658787724,2.2515,3100.0,3099.5,0.68061574]
[1720658787929,2.2515,3100.0,3099.2,3.90307026]
[1720658787930,2.2515,3100.0,3099.2,1.68473735]
[1720658788226,2.2515,3100.0,3099.0,3.0]
[1720658788589,0.06205941,3099.9,3098.9,1.895]
[1720658788789,2.292,3099.8,3098.9,1.895]
[1720658789001,2.82740594,3099.8,3098.5,7.91317793]
[1720658789212,0.06197706,3099.7,3098.5,2.32498948]
[1720658789747,0.06197706,3099.7,3098.6,0.06453095]
[1720658789911,0.06197706,3099.7,3098.9,1.895]
[1720658790106,0.06197706,3099.7,3098.9,1.95952528]
[1720658790438,0.06197706,3099.7,3099.0,0.19595253]
[1720658793529,0.06197706,3099.7,3099.1,3.22674]
[1720658793855,0.06197706,3099.7,3099.0,2.57605253]
[1720658793856,0.06197706,3099.7,3099.0,5.80281253]
[1720658794043,0.06197706,3099.7,3099.0,3.42271253]
[1720658794407,0.06197706,3099.7,3099.1,3.22672]
[1720658794736,0.33796591,3100.1,3099.3,1.895]
[1720658795050,0.06172694,3100.0,3099.3,1.895]
[1720658795413,0.06172694,3100.0,3099.2,0.66494325]
[1720658795609,2.4145,3099.9,3099.0,0.26047735]
[1720658796013,0.0617465,3099.8,3099.0,0.26047735]
[1720658796415,2.4145,3099.9,3099.0,0.26047735]
[1720658796652,2.4145,3099.9,3099.0,0.19595253]
[1720658796861,0.06174215,3099.8,3099.0,0.19595253]
[1720658797021,0.06174215,3099.8,3099.1,0.20909525]
[1720658797342,2.4145,3099.9,3099.1,0.20909525]
[1720658797539,0.06174215,3099.8,3099.1,0.20909525]
[1720658797860,2.4145,3099.9,3099.1,0.20909525]
[1720658798249,0.06172404,3099.8,3099.1,0.20909525]
[1720658798550,2.4145,3099.9,3099.1,0.20909525]
[1720658798551,2.4145,3099.9,3099.3,1.895]
[1720658798758,2.4145,3099.9,3099.3,1.95951762]
[1720658798924,0.06166401,3099.8,3099.3,1.95951762]
[1720658799133,2.4145,3099.9,3099.3,1.95951762]
[1720658799478,0.06168849,3099.8,3099.3,1.95951762]
[1720658799682,0.06168849,3099.8,3099.4,0.55493274]
[1720658799887,2.73876591,3100.1,3099.5,0.06451701]
[1720658800028,2.4008,3100.6,3099.8,3.22599]
[1720658800225,0.06191091,3100.0,3099.9,3.2259]
[1720658800468,5.83959906,3100.7,3100.0,3.22576]
[1720658800672,5.83959906,3101.3,3100.1,3.29019045]
[1720658800842,0.06220017,3100.6,3100.3,1.895]
[1720658801047,0.33780956,3101.2,3100.4,0.06449935]
[1720658801434,0.06234419,3101.1,3100.4,0.06449935]
[1720658801677,0.06234419,3101.1,3100.4,0.26044917]
[1720658804297,0.06234419,3101.1,3100.4,0.19594994]
[1720658804798,2.408,3101.5,3100.4,0.19594994]
[1720658805169,0.06259846,3101.4,3100.4,0.19594994]
[1720658805697,0.06259846,3101.4,3100.3,1.895]
[1720658805903,0.06259846,3101.4,3099.9,0.834689]
[1720658806057,0.06259846,3101.4,3099.7,4.895]
[1720658806058,2.3835,3101.3,3099.7,4.895]
[1720658806405,0.06291643,3101.2,3099.7,4.895]
[1720658806908,0.06291643,3101.2,3099.8,0.06450573]
[1720658807261,0.06291643,3101.2,3099.7,1.895]
[1720658808685,2.355,3101.0,3099.4,0.55493274]
[1720658808866,2.355,3100.8,3099.2,3.5794947]
[1720658809210,0.06218373,3100.7,3099.2,1.895]
[1720658809355,2.355,3100.6,3099.2,1.895]
[1720658809551,0.06245473,3100.5,3099.2,1.895]
[1720658811690,2.355,3100.4,3099.2,1.895]
[1720658811897,0.24174547,3100.3,3099.2,1.895]
[1720658812058,0.30405212,3100.3,3099.2,1.895]
[1720658812405,0.30405212,3100.3,3099.3,0.06451755]
[1720658812406,0.06230665,3100.3,3099.3,0.06451755]
[1720658812607,0.06230665,3100.3,3099.3,3.29096755]
[1720658812769,0.06230665,3100.3,3099.6,1.895]
[1720658812974,0.06230665,3100.3,3099.6,1.95951162]
[1720658813298,0.06230665,3100.3,3099.7,0.19595116]
[1720658814156,0.06230665,3100.3,3099.8,0.06451158]
[1720658814364,8.19459906,3100.9,3100.0,1.895]
[1720658814720,0.06226479,3100.2,3100.1,0.0645049]
[1720658814995,5.83959906,3101.5,3100.1,0.26045539]
[1720658814996,2.4107,3101.4,3100.1,0.26045539]
[1720658815361,0.06246643,3101.3,3100.1,0.26045539]
[1720658815869,0.06246643,3101.3,3100.1,0.19595049]
[1720658816073,2.4107,3101.2,3100.0,1.895]
[1720658816678,0.06263354,3101.1,3099.7,0.19595116]
[1720658817161,2.4107,3101.0,3099.7,0.19595116]
[1720658817710,0.0625179,3100.9,3099.7,0.19595116]
[1720658820422,3.0625179,3100.9,3099.7,0.19595116]
[1720658820640,3.0625179,3100.9,3099.6,1.895]
[1720658820641,3.6436246,3100.9,3099.8,0.20909512]
[1720658821326,3.0625179,3100.9,3099.8,0.27360473]
[1720658821534,3.0625179,3100.9,3099.8,0.20909512]
[1720658822616,5.4554,3100.8,3099.8,0.20909512]
[1720658822789,2.4554,3100.8,3099.8,0.20909512]
[1720658822988,0.06234417,3100.7,3099.8,0.20909512]
[1720658823221,3.06234417,3100.7,3099.8,0.20909512]
[1720658823682,0.06234417,3100.7,3099.8,0.20909512]
[1720658823923,0.06234417,3100.7,3099.9,0.66611351]
[1720658824135,2.4554,3100.8,3099.9,0.66611351]
[1720658824343,2.4554,3100.8,3099.6,7.25525025]
[1720658824344,2.4554,3100.8,3099.6,1.895]
[1720658824634,2.51222356,3100.7,3099.2,1.895]
[1720658824799,2.4497,3100.6,3099.2,1.895]
[1720658824990,2.4497,3100.5,3099.2,1.895]
[1720658825192,2.4497,3100.3,3099.2,2.0909522]
[1720658825605,0.06238604,3100.2,3099.3,0.0645224]
[1720658825831,0.06238604,3100.2,3099.3,1.18773131]
[1720658825996,0.06238604,3100.2,3099.3,0.0645224]
[1720658826619,2.4497,3100.3,3099.3,1.7490911]
[1720658826828,2.4497,3100.3,3099.4,0.45157248]
[1720658827150,2.4497,3100.3,3099.2,2.0909522]
[1720658827738,2.4497,3100.3,3099.2,3.77587018]
[1720658828117,2.4497,3100.3,3099.2,2.0909522]
[1720658828318,2.4497,3100.3,3099.2,3.77590143]
[1720658828549,2.4497,3100.3,3099.3,2.87263248]
[1720658828733,0.06230037,3100.2,3099.4,1.68720859]
[1720658828919,0.06230037,3100.2,3099.4,0.56395925]
[1720658829119,2.3039,3100.0,3099.2,1.895]
[1720658829653,0.06198346,3099.9,3099.2,1.895]
[1720658830165,0.06198346,3099.9,3098.9,1.6850593]
[1720658830309,0.06198346,3099.9,3098.6,1.68519219]
[1720658830310,2.3039,3099.8,3098.6,1.68519219]
[1720658830506,2.3039,3099.6,3098.3,0.67600778]
[1720658830749,2.3039,3099.5,3098.2,1.68535716]
[1720658831065,2.3039,3099.3,3097.8,0.67600778]
[1720658831217,2.3039,3099.3,3097.7,1.68565893]
[1720658831416,0.06174009,3099.2,3097.6,2.57100778]
[1720658831819,2.3039,3099.1,3097.7,0.99710078]
[1720658831950,2.3039,3099.1,3097.6,1.895]
[1720658832271,2.3039,3098.9,3097.6,1.895]
[1720658832459,2.3039,3098.9,3096.9,4.24301168]
[1720658832460,2.3039,3098.8,3097.2,1.895]
[1720658832667,2.91494147,3098.8,3097.2,1.895]
[1720658832861,3.0,3098.7,3097.2,1.895]
[1720658833019,3.0,3098.7,3097.3,0.1895]
[1720658833020,0.59149415,3098.6,3097.3,0.1895]
[1720658833225,0.65283868,3098.6,3097.3,0.1895]
[1720658833456,0.65283868,3098.6,3097.2,1.895]
[1720658833666,2.3039,3098.5,3097.2,1.895]
[1720658833977,2.3039,3098.5,3096.8,1.895]
[1720658833978,2.3039,3098.4,3096.8,1.895]
[1720658834123,5.36483276,3098.4,3096.8,1.895]
[1720658834323,0.83648328,3098.3,3096.9,0.1895]
[1720658834550,0.06077957,3098.2,3096.9,0.1895]
[1720658836350,0.06077957,3098.2,3096.8,1.895]
[1720658836975,2.2729,3098.1,3096.4,1.895]
[1720658837260,2.2729,3097.9,3096.4,1.895]
[1720658837468,0.23329967,3097.8,3096.4,2.407476]
[1720658837627,3.29358117,3097.8,3096.4,2.407476]
[1720658837825,3.29358117,3097.8,3096.4,1.895]
[1720658838470,3.29358117,3097.8,3096.5,0.06457928]
[1720658839470,0.33812962,3097.7,3096.5,0.06457928]
[1720658839777,0.39838225,3097.7,3096.5,0.06457928]
[1720658840577,0.39838225,3097.7,3096.4,1.95957926]
[1720658840746,0.36316819,3097.6,3096.5,0.19595793]
[1720658840948,0.06019489,3097.5,3096.6,0.06457925]
[1720658841150,0.06019489,3097.5,3096.5,3.42538793]
[1720658841379,0.06016602,3097.4,3096.5,3.42538793]
[1720658841581,0.33812962,3097.7,3096.5,3.42538793]
[1720658841783,0.33812962,3097.7,3096.6,0.53203879]
[1720658841985,0.06014313,3097.6,3096.6,0.53203879]
[1720658842790,0.06014313,3097.6,3096.7,0.06457258]
[1720658843791,0.06014313,3097.6,3096.9,1.895]
[1720658844096,5.2729,3097.9,3096.9,1.895]
[1720658844293,0.06008594,3097.5,3096.9,2.0845]
[1720658844499,5.2729,3097.9,3096.9,2.0845]
[1720658844687,0.06006795,3097.4,3096.9,2.0845]
[1720658844853,5.2729,3097.9,3096.9,0.1895]
[1720658845058,0.06003908,3097.3,3096.6,0.53203879]
[1720658845258,5.2729,3097.9,3096.6,0.53203879]
[1720658845496,0.0600102,3097.2,3096.6,0.53203879]
[1720658845796,5.2729,3097.9,3096.6,0.53203879]
[1720658846294,0.06018342,3097.8,3096.6,0.53203879]
[1720658846500,0.06018342,3097.8,3096.7,0.58524367]
[1720658846708,0.06018342,3097.8,3096.8,0.06457263]
[1720658846859,0.06018342,3097.8,3096.9,1.895]
[1720658847307,0.06018342,3097.8,3096.7,0.58524367]
[1720658847308,0.06018342,3097.8,3096.7,0.06457137]
[1720658847471,0.06018342,3097.8,3096.5,1.895]
[1720658847796,2.3789,3097.7,3096.6,0.4895]
[1720658848095,5.3789,3097.7,3096.6,0.4895]
[1720658848401,0.06008862,3097.6,3096.7,0.06457263]
[1720658848602,0.06008862,3097.6,3096.7,3.29378263]
[1720658848760,2.3789,3097.7,3096.8,0.0645672]
[1720658848960,2.3789,3097.7,3096.7,3.22921]
[1720658848961,0.06010335,3097.5,3096.9,0.32937772]
[1720658849291,0.06007448,3097.4,3096.9,0.32937772]
[1720658849510,2.3789,3097.7,3096.6,3.78340725]
[1720658849699,0.06004561,3097.3,3096.6,3.78340725]
[1720658849904,2.3789,3097.7,3096.6,3.78340725]
[1720658850198,0.06013222,3097.6,3096.6,3.71884]
[1720658850901,0.06013222,3097.6,3096.6,0.4895]
[1720658851095,0.06013222,3097.6,3096.7,0.23845]
[1720658853932,0.06013222,3097.6,3096.8,0.06457265]
[1720658855500,0.06013222,3097.6,3096.9,1.895]
[1720658856434,0.06013222,3097.6,3097.0,0.06456723]
[1720658857843,0.05808476,3097.5,3097.0,0.06456723]
[1720658858137,5.83959906,3098.2,3097.6,3.22821]
[1720658858346,2.2828,3098.5,3097.7,1.95954941]
[1720658858524,2.2828,3098.5,3097.8,3.22803]
[1720658859102,2.2828,3098.5,3097.8,6.45604]
[1720658859445,5.83959906,3098.8,3097.9,4.12763029]
[1720658861048,5.83959906,3098.8,3097.9,0.89965029]
[1720658861220,5.83959906,3098.8,3097.9,0.06454629]
[1720658861625,5.83959906,3098.8,3097.9,3.29251629]
[1720658862311,5.83959906,3098.8,3098.0,3.22784]
[1720658862536,5.83959906,3098.8,3098.1,5.1873251]
[1720658863452,5.83959906,3098.8,3098.2,0.06454265]
[1720658863760,5.83959906,3098.8,3098.3,0.51873226]
[1720658863917,8.83959906,3099.4,3098.3,0.51873226]
[1720658864113,2.4983,3099.3,3098.1,1.895]
[1720658864470,2.4983,3099.3,3097.7,5.12319]
[1720658864963,2.4983,3099.3,3097.8,0.06454932]
[1720658865473,0.05482639,3099.2,3097.8,0.06454932]
[1720658865683,3.05482639,3099.2,3097.8,0.06454932]
[1720658865829,0.55531264,3099.1,3097.9,0.51877393]
[1720658866148,0.05478422,3099.0,3097.9,0.51877393]
[1720658872349,0.05478422,3099.0,3098.0,1.1237144]
[1720658872878,0.05478422,3099.0,3097.9,2.2043868]
[1720658873252,0.05478422,3099.0,3098.0,2.87388307]
[1720658873441,0.05478422,3099.0,3098.1,0.40657882]
[1720658873792,0.05478422,3099.0,3097.9,0.51877393]
[1720658874010,0.05478422,3099.0,3098.0,2.80929191]
[1720658874141,2.2956,3098.9,3098.1,1.12370003]
[1720658874485,0.05500736,3098.8,3097.9,1.19190517]
[1720658874645,0.05500736,3098.8,3098.0,2.80926688]
[1720658874851,0.05500736,3098.8,3098.1,1.52382396]
[1720658875034,0.05500736,3098.8,3098.1,0.40011721]
[1720658875237,0.05500736,3098.8,3098.2,1.12370687]
[1720658875560,0.05500736,3098.8,3098.1,0.40011721]
[1720658875873,0.05500736,3098.8,3098.0,1.68559048]
[1720658876078,0.05500736,3098.8,3098.1,1.1237397]
[1720658876286,0.05500736,3098.8,3097.9,1.19190517]
[1720658876440,0.05500736,3098.8,3098.0,2.80936299]
[1720658876644,0.05500736,3098.8,3098.1,1.12374524]
[1720658876975,0.05500736,3098.8,3098.1,0.23156504]
[1720658877549,0.05500736,3098.8,3097.9,0.51877393]
[1720658877752,2.4463,3098.7,3097.9,0.51877393]
[1720658878059,2.4463,3098.7,3097.7,1.895]
[1720658878060,0.05499382,3098.6,3097.7,1.895]
[1720658878267,0.05499382,3098.6,3097.8,1.12381448]
[1720658878471,0.05499382,3098.6,3097.7,1.895]
[1720658878472,0.05499382,3098.6,3097.7,3.58071185]
[1720658878648,0.05499382,3098.6,3097.8,1.1238148]
[1720658878853,0.05499382,3098.6,3097.9,0.30188148]
[1720658884103,0.05499382,3098.6,3098.0,0.06454918]
[1720658884262,0.05499382,3098.6,3097.9,0.30188148]
[1720658885481,2.4857,3098.5,3097.5,2.35886329]
[1720658885800,2.2553,3098.4,3097.3,1.895]
[1720658885970,2.3101786,3098.4,3097.3,1.895]
[1720658888430,2.3101786,3098.4,3097.2,1.68783764]
[1720658889883,2.3101786,3098.4,3097.1,0.19595672]
[1720658890096,2.54119646,3098.4,3097.1,0.19595672]
[1720658890323,3.0,3098.3,3097.1,0.19595672]
[1720658890829,0.05449247,3098.2,3097.1,0.19595672]
[1720658891687,0.05449247,3098.2,3097.3,1.895]
[1720658891917,0.05449247,3098.2,3097.4,0.06456304]
[1720658892127,0.55408103,3098.2,3097.4,0.06456304]
[1720658892428,0.05443313,3098.1,3097.4,0.06456304]
[1720658892813,0.05443313,3098.1,3097.3,1.95956339]
[1720658893125,0.55408103,3098.2,3097.3,1.95956339]
[1720658894197,0.33813704,3098.1,3097.3,1.95956339]
[1720658894395,0.33813704,3098.1,3097.3,2.34371423]
[1720658894990,0.33813704,3098.1,3097.7,1.895]
[1720658895331,0.33813704,3098.1,3097.8,1.12376021]
[1720658895630,0.33813704,3098.1,3097.9,2.80968876]
[1720658895971,1e-08,3098.1,3098.0,2.80968876]
[1720658896131,1e-08,3098.1,3098.0,0.67778818]
[1720658896327,1e-08,3098.1,3098.0,3.4869509]
[1720658896531,1e-08,3098.1,3098.0,0.67778818]
[1720658896730,1e-08,3098.1,3097.8,4.91357763]
[1720658896930,1e-08,3098.1,3097.9,1.12375347]
[1720658897171,1e-08,3098.1,3097.8,4.91357763]
[1720658897332,1e-08,3098.1,3097.9,1.12374992]
[1720658897677,1e-08,3098.1,3097.8,3.22808]
[1720658897878,1e-08,3098.1,3097.9,3.71211055]
[1720658898045,1e-08,3098.1,3097.9,0.9027406]
[1720658898385,1e-08,3098.1,3097.9,4.1307306]
[1720658898533,1e-08,3098.1,3098.0,1.12374432]
[1720658899542,1e-08,3098.1,3097.9,4.1307306]
[1720658899754,1e-08,3098.1,3098.0,1.60444297]
[1720658900749,1e-08,3098.1,3098.0,1.12375031]
[1720658900951,1e-08,3098.1,3097.7,2.57119596]
[1720658901149,2.25800001,3098.1,3097.8,2.80953741]
[1720658901399,2.25800001,3098.1,3097.7,1.895]
[1720658902318,2.25800001,3098.1,3097.8,2.8097019]
[1720658902468,2.25800001,3098.1,3097.9,1.59435095]
[1720658902671,2.25800001,3098.1,3097.9,0.47047019]
[1720658904776,1e-08,3098.1,3098.0,1.12379345]
[1720658904972,1e-08,3098.1,3098.0,2.80948144]
[1720658905192,1e-08,3098.1,3098.0,3.5312795]
[1720658906216,1e-08,3098.1,3098.0,2.80948144]
[1720658906569,1e-08,3098.1,3097.9,0.47047019]
[1720658906922,1e-08,3098.1,3098.0,2.80945465]
[1720658907979,1e-08,3098.1,3098.0,1.12378186]
[1720658908188,1e-08,3098.1,3098.0,2.80941657]
[1720658908526,1e-08,3098.1,3098.0,3.20502484]
[1720658909500,1e-08,3098.1,3098.0,3.8812208]
[1720658909706,1e-08,3098.1,3098.0,3.20502484]
[1720658910023,1e-08,3098.1,3098.0,0.39560827]
[1720658910177,1e-08,3098.1,3098.0,3.20499397]
[1720658910374,1e-08,3098.1,3098.0,3.88118993]
[1720658913455,1e-08,3098.1,3098.0,1.07180423]
[1720658913720,1e-08,3098.1,3098.0,3.20503117]
[1720658913888,1e-08,3098.1,3098.0,3.88122713]
[1720658914094,2.4945,3098.5,3098.0,3.88122713]
[1720658914309,2.4945,3098.5,3098.1,2.8094229]
[1720658914490,2.4945,3098.5,3098.0,0.67619596]
[1720658914491,2.4945,3098.5,3098.2,1.12374928]
[1720658914719,2.4945,3098.5,3098.0,0.67619596]
[1720658914720,0.05310227,3098.4,3098.0,0.67619596]
[1720658914918,0.05310227,3098.4,3098.1,2.80938553]
[1720658915113,0.05310227,3098.4,3098.2,1.12375421]
[1720658915320,0.05310227,3098.4,3098.0,0.67619596]
[1720658915515,0.05310227,3098.4,3098.1,2.80936398]
[1720658915742,0.05310227,3098.4,3098.2,3.48555994]
[1720658915947,0.05310227,3098.4,3098.3,3.48555994]
[1720658916106,2.3816,3098.9,3098.3,3.48697144]
[1720658916311,2.3816,3098.9,3098.4,2.80936398]
[1720658916511,0.05321332,3098.8,3098.5,1.12374559]
[1720658916853,0.05321332,3098.8,3098.3,0.67760746]
[1720658917056,0.05321332,3098.8,3098.4,2.80914106]
[1720658917297,0.05321332,3098.8,3098.2,0.67760746]
[1720658917565,0.05321332,3098.8,3098.3,2.80918265]
[1720658917752,0.05321332,3098.8,3098.4,1.12367306]
[1720658917950,0.05321332,3098.8,3098.2,1.43839982]
[1720658918143,0.05321332,3098.8,3098.3,2.80919888]
[1720658918336,0.05321332,3098.8,3098.4,1.12367955]
[1720658918541,0.05321332,3098.8,3098.1,0.67760746]
[1720658918725,0.05321332,3098.8,3098.2,2.80930997]
[1720658918929,0.05321332,3098.8,3098.3,1.12372399]
[1720658919124,0.05321332,3098.8,3098.1,0.67760746]
[1720658919368,0.05321332,3098.8,3098.2,2.80931066]
[1720658919573,0.88065456,3098.8,3098.3,1.12372426]
[1720658919778,0.88065456,3098.8,3098.1,0.67760746]
[1720658919981,0.05321332,3098.8,3098.2,1.12373959]
[1720658920163,0.05321332,3098.8,3098.3,1.12373959]
[1720658920477,0.05321332,3098.8,3098.1,0.67760746]
[1720658920779,0.05321332,3098.8,3098.2,2.80934517]
[1720658920999,0.05321332,3098.8,3098.3,1.12373807]
[1720658921274,0.05321332,3098.8,3098.1,0.67760746]
[1720658921581,0.05321332,3098.8,3098.2,2.80926672]
[1720658921873,0.05321332,3098.8,3098.3,2.80926672]
[1720658922040,0.05321332,3098.8,3098.1,1.11857957]
[1720658922252,0.05321332,3098.8,3098.2,2.80926777]
[1720658922452,0.05321332,3098.8,3098.3,1.12370711]
[1720658922671,0.05321332,3098.8,3098.1,1.11857957]
[1720658922871,0.05321332,3098.8,3098.2,2.8093036]
[1720658923077,0.05321332,3098.8,3098.3,1.12372144]
[1720658923275,0.05321332,3098.8,3098.1,0.67760746]
[1720658923588,0.05321332,3098.8,3098.2,2.80931997]
[1720658923793,0.05321332,3098.8,3098.3,1.12372799]
[1720658923992,0.05321332,3098.8,3098.1,0.67760746]
[1720658924153,0.05321332,3098.8,3098.2,2.80932048]
[1720658924352,0.05321332,3098.8,3098.3,1.12372819]
[1720658924552,0.05321332,3098.8,3098.1,0.67760746]
[1720658924801,0.05321332,3098.8,3098.3,0.789]
[1720658924964,2.2675,3098.7,3098.1,0.789]
[1720658925403,0.05329386,3098.6,3098.1,0.789]
[1720658926083,0.0532318,3098.5,3098.1,0.789]
[1720658926409,2.2675,3098.7,3098.2,1.12377561]
[1720658926607,0.05320294,3098.4,3098.1,0.789]
[1720658926808,2.49425,3098.7,3098.2,1.1237709]
[1720658927108,2.49425,3098.7,3098.1,0.789]
[1720658927109,0.05326065,3098.6,3098.1,0.789]
[1720658927320,0.05326065,3098.6,3098.2,1.12376724]
[1720658927608,0.05326065,3098.6,3098.1,0.789]
[1720658928708,0.05326065,3098.6,3098.3,0.789]
[1720658932810,0.05326065,3098.6,3098.5,0.789]
[1720658933019,0.05326065,3098.6,3098.5,2.27250035]
[1720658933183,2.4988,3099.1,3098.5,3.95796364]
[1720658933383,0.05315719,3098.6,3098.5,1.14881831]
[1720658933597,2.4988,3099.1,3098.5,1.91265471]
[1720658933833,0.05317271,3098.6,3098.5,0.789]
[1720658933990,2.4988,3099.1,3098.5,1.91268024]
[1720658934179,0.05317271,3098.6,3098.5,0.789]
[1720658934375,2.4988,3099.1,3098.5,1.9126692]
[1720658934685,2.4988,3099.1,3098.5,0.789]
[1720658934895,0.05328811,3099.0,3098.5,0.789]
[1720658936508,0.05328811,3099.0,3098.6,1.12364783]
[1720658936719,0.05328811,3099.0,3098.5,0.789]
[1720658937131,0.05328811,3099.0,3098.6,1.12364086]
[1720658937290,0.05328811,3099.0,3098.5,0.789]
[1720658937614,0.05328811,3099.0,3098.6,1.12365896]
[1720658937812,0.05328811,3099.0,3098.5,0.789]
[1720658938127,0.05328811,3099.0,3098.6,1.12365485]
[1720658938333,0.05328811,3099.0,3098.5,0.789]
[1720658938551,0.05328811,3099.0,3098.6,2.80911556]
[1720658938691,0.05328811,3099.0,3098.5,1.46660746]
[1720658938692,0.05328811,3099.0,3098.7,1.91264622]
[1720658938892,0.05328811,3099.0,3098.7,0.789]
[1720658939628,0.05328811,3099.0,3098.8,1.12361199]
[1720658939802,0.05328811,3099.0,3098.7,0.789]
[1720658940502,0.05328811,3099.0,3098.8,1.12361721]
[1720658940724,0.05328811,3099.0,3098.7,0.789]
[1720658940925,0.05328811,3099.0,3098.8,2.80898243]
[1720658941088,0.05328811,3099.0,3098.7,1.0435442]
[1720658941294,0.05328811,3099.0,3098.8,2.80894088]
[1720658941630,0.05328811,3099.0,3098.7,1.0435442]
[1720658941852,0.05328811,3099.0,3098.8,1.12358043]
[1720658942009,0.05328811,3099.0,3098.7,0.789]
[1720658944047,0.05328811,3099.0,3098.8,1.12359984]
[1720658944219,0.05328811,3099.0,3098.7,0.789]
[1720658944418,0.05328811,3099.0,3098.8,1.1235981]
[1720658944733,0.05328811,3099.0,3098.7,0.789]
[1720658950235,0.05328811,3099.0,3098.9,0.789]
[1720658950551,2.4349,3099.4,3098.9,3.59785156]
[1720658950749,2.4349,3099.4,3099.1,0.789]
[1720658953957,2.4349,3099.4,3098.9,0.789]
[1720658954162,2.4349,3099.4,3098.7,0.789]
[1720658954664,3.2239,3099.4,3098.5,0.67804529]
[1720658954834,3.2239,3099.4,3098.2,1.35609059]
[1720658954835,2.4113,3099.2,3098.2,0.67804529]
[1720658955040,2.4113,3098.9,3098.3,1.12371665]
[1720658955239,2.4113,3098.9,3098.1,1.46704529]
[1720658955560,2.4113,3098.9,3098.3,0.789]
[1720658955724,2.4113,3098.9,3098.4,1.12371789]
[1720658955926,0.05235973,3098.8,3098.5,1.91268474]
[1720658956265,0.05235973,3098.8,3098.5,0.789]
[1720658956426,2.3597,3099.2,3098.5,0.789]
[1720658956627,2.3597,3099.2,3098.6,1.12366302]
[1720658956847,0.05245073,3099.1,3098.5,0.789]
[1720658958467,0.5936658,3099.1,3098.3,1.46715466]
[1720658958770,3.45700312,3099.0,3098.1,1.46715466]
[1720658958935,3.0,3098.9,3098.2,2.80943223]
[1720658959140,0.05238858,3098.9,3098.3,1.91277289]
[1720658959342,0.05238858,3098.9,3098.3,0.789]
[1720658959539,0.59149744,3098.9,3098.3,0.789]
[1720658959730,0.59149744,3098.9,3098.1,0.67815466]
[1720658959731,3.59149744,3098.9,3098.5,0.789]
[1720658962363,0.05238858,3098.9,3098.5,0.789]
[1720658962556,2.3387,3099.0,3098.5,0.789]
[1720658962958,0.05233381,3098.9,3098.5,0.789]
[1720658964159,0.33803963,3098.8,3098.5,0.789]
[1720658965456,0.33803963,3098.8,3098.3,0.789]
[1720658965652,0.33803963,3098.8,3098.4,1.12373868]
[1720658965980,0.05229521,3098.7,3098.3,0.789]
[1720658966272,0.05229521,3098.7,3098.4,1.12374376]
[1720658966479,0.33803963,3098.8,3098.5,0.789]
[1720658966686,0.05230637,3098.6,3098.5,0.789]
[1720658966845,0.33803963,3098.8,3098.5,0.789]
[1720658967356,0.05259179,3098.7,3098.5,0.789]
[1720658967980,0.0523608,3098.6,3098.5,0.789]
[1720658968483,0.33803963,3098.8,3098.5,1.9126738]
[1720658968785,0.33803963,3098.8,3098.5,0.789]
[1720658969084,0.05238965,3098.7,3098.3,0.789]
[1720658969291,0.05238965,3098.7,3098.1,0.67815466]
[1720658969445,2.4793,3098.7,3098.2,2.8094617]
[1720658969644,2.96103396,3098.7,3098.0,1.46715466]
[1720658969973,0.05266774,3098.6,3098.0,0.789]
[1720658970169,3.05266774,3098.6,3098.0,0.789]
[1720658970384,3.05266774,3098.6,3098.2,0.789]
[1720658972885,3.05266774,3098.6,3098.4,0.789]
[1720658973681,0.05266774,3098.6,3098.4,0.789]
[1720658973882,3.33803963,3098.8,3098.4,0.789]
[1720658974285,0.05232281,3098.7,3098.4,0.789]
[1720658974601,3.33803963,3098.8,3098.2,0.789]
[1720658974916,0.05232934,3098.7,3098.2,0.789]
[1720658980069,0.05232934,3098.7,3098.4,0.789]
[1720658980266,3.33803963,3098.8,3098.4,0.789]
[1720658980469,0.05219867,3098.7,3098.4,0.789]
[1720658980670,3.33803963,3098.8,3098.4,0.789]
[1720658980974,0.05219867,3098.7,3098.4,0.789]
[1720658981188,3.33803963,3098.8,3098.4,0.789]
[1720658981682,0.05219867,3098.7,3098.4,0.789]
[1720658981888,3.33803963,3098.8,3098.4,0.789]
[1720658982083,0.05219867,3098.7,3098.4,0.789]
[1720658982285,3.33803963,3098.8,3098.4,0.789]
[1720658982497,0.05219867,3098.7,3098.4,0.789]
[1720658982824,3.33803963,3098.8,3098.4,0.789]
[1720658982986,0.05216981,3098.6,3098.2,0.789]
[1720658983187,3.33803963,3098.8,3098.2,0.789]
[1720658983515,0.05240834,3098.7,3098.2,0.789]
[1720658988528,0.05240834,3098.7,3097.9,0.67815466]
[1720658988529,0.05240834,3098.7,3098.6,0.789]
[1720658988750,0.33803963,3098.8,3098.6,0.789]
[1720658988939,0.05232584,3098.7,3098.6,0.789]
[1720658989418,0.33803963,3098.8,3098.6,0.789]
[1720658989619,0.05232584,3098.7,3098.6,0.789]
[1720658989823,0.05232584,3098.7,3098.4,0.789]
[1720658990123,0.05233809,3098.6,3098.4,0.789]
[1720658990320,0.33803963,3098.8,3098.4,0.789]
[1720658990524,0.05238245,3098.7,3098.4,0.789]
[1720658990726,0.33803963,3098.8,3098.4,0.789]
[1720658990927,0.052429,3098.7,3098.4,0.789]
[1720658991145,0.33803963,3098.8,3098.4,0.789]
[1720658991708,0.05245733,3098.7,3098.4,0.789]
[1720658991911,0.33803963,3098.8,3098.4,0.789]
[1720658992154,0.05245733,3098.7,3098.4,0.789]
[1720658992689,0.33803963,3098.8,3098.4,0.789]
[1720658992836,0.05242848,3098.6,3098.4,0.789]
[1720658993034,0.33803963,3098.8,3098.4,0.789]
[1720658993527,0.05245733,3098.7,3098.4,0.789]
[1720658993713,0.33803963,3098.8,3098.4,0.789]
[1720658993917,0.05245733,3098.7,3098.4,0.789]
[1720658994153,0.33803963,3098.8,3098.4,0.789]
[1720658994453,0.05238193,3098.6,3098.4,0.789]
[1720658994656,0.33803963,3098.8,3098.4,0.789]
[1720658994819,0.05233756,3098.5,3098.4,0.789]
[1720658995019,0.33803963,3098.8,3098.4,1.91273338]
[1720658995221,0.05232205,3098.5,3098.4,1.0480888]